bitfinex-derivatives/quotes_ETHF0:USTF0_20230830
["timestamp","ask_amount","ask_price","bid_price","bid_amount"]
[1693353601654,3.99288176,1729.9,1729.7,5.8362]
[1693353605053,2.5593,1729.9,1729.7,5.8362]
[1693353605252,0.20248875,1730.0,1729.8,2.26993648]
[1693353605455,0.00867152,1730.0,1729.9,3.2078]
[1693353606750,0.00867152,1730.0,1729.9,5.7571]
[1693353607556,0.46822092,1730.3,1729.9,6.913]
[1693353607757,2.5355,1730.5,1730.2,3.2078]
[1693353607956,2.5355,1730.5,1730.4,3.2078]
[1693353608158,4.43388384,1730.5,1730.4,5.47773648]
[1693353609774,3.00030208,1730.5,1730.4,5.47773648]
[1693353613965,4.43388384,1730.5,1730.4,5.47773648]
[1693353615065,3.00030208,1730.5,1730.4,5.47773648]
[1693353615467,4.43388384,1730.5,1730.4,5.47773648]
[1693353616065,4.43388384,1730.5,1730.2,5.8463]
[1693353616460,11.43440064,1730.5,1730.2,5.8463]
[1693353616767,12.26712865,1730.5,1730.0,3.2078]
[1693353616968,19.83012817,1730.5,1730.0,3.2078]
[1693353617163,19.83012817,1730.5,1729.8,2.4245]
[1693353617164,6.80669957,1730.3,1729.8,5.6323]
[1693353617364,0.19381723,1730.2,1730.0,3.2078]
[1693353617567,4.08569899,1730.2,1730.0,3.2078]
[1693353619068,4.08569899,1730.2,1729.8,3.2078]
[1693353619265,4.08569899,1730.2,1730.0,3.2078]
[1693353619569,2.4583,1730.2,1730.0,3.2078]
[1693353619772,2.4583,1730.2,1730.1,2.26993648]
[1693353620072,3.89188176,1730.2,1730.1,2.26993648]
[1693353620667,2.4583,1730.2,1730.1,2.26993648]
[1693353621668,3.89188176,1730.2,1730.1,2.26993648]
[1693353621864,3.89188176,1730.2,1730.0,3.2078]
[1693353627569,6.05874791,1730.1,1730.0,3.2078]
[1693353628973,6.25256514,1730.1,1729.8,3.2078]
[1693353629172,1.43358176,1730.0,1729.8,3.2078]
[1693353629472,7.49232967,1730.0,1729.8,3.2078]
[1693353629676,2.4603,1729.9,1729.8,3.2078]
[1693353638582,8.71185395,1729.9,1729.8,3.2078]
[1693353641180,8.51803672,1729.9,1729.8,3.2078]
[1693353642877,2.4603,1729.9,1729.8,3.2078]
[1693353643381,2.92422902,1729.9,1729.8,3.2078]
[1693353644276,0.46392902,1729.9,1729.8,3.2078]
[1693353644482,8.50223672,1730.0,1729.8,3.2078]
[1693353648276,9.93581848,1730.0,1729.8,3.2078]
[1693353648483,0.19381723,1729.9,1729.8,3.2078]
[1693353648885,11.45655395,1729.9,1729.8,3.2078]
[1693353650783,11.45573159,1729.9,1729.8,3.2078]
[1693353659888,11.26191436,1729.9,1729.8,3.2078]
[1693353660794,11.92889414,1729.9,1729.8,3.2078]
[1693353662090,5.87197978,1729.9,1729.8,3.2078]
[1693353662290,11.93371447,1729.9,1729.8,3.2078]
[1693353662595,5.87197978,1729.9,1729.8,3.2078]
[1693353663395,5.67816255,1729.9,1729.8,3.2078]
[1693353663595,11.7407231,1729.9,1729.8,3.2078]
[1693353665294,13.17430486,1729.9,1729.8,3.2078]
[1693353667490,7.11174431,1729.9,1729.8,3.2078]
[1693353668685,13.92577297,1729.9,1729.8,3.2078]
[1693353669398,7.11174431,1729.9,1729.8,3.2078]
[1693353669792,13.92577297,1729.9,1729.8,3.2078]
[1693353670998,13.17659619,1729.9,1729.8,3.2078]
[1693353671800,6.53801443,1729.9,1729.8,3.2078]
[1693353677396,0.47316255,1729.9,1729.8,9.5688]
[1693353677698,13.34658152,1730.1,1729.8,9.5688]
[1693353677901,6.53255286,1730.1,1730.0,8.4128]
[1693353679896,0.46770098,1730.1,1730.0,8.4128]
[1693353680097,6.06485188,1730.2,1730.0,8.4128]
[1693353680298,6.06485188,1730.2,1730.1,2.26993648]
[1693353680498,5.85825188,1730.2,1730.1,2.26993648]
[1693353681000,6.32994759,1730.2,1730.1,2.26993648]
[1693353682001,6.32994759,1730.2,1730.1,7.47493648]
[1693353682400,7.76352935,1730.2,1730.1,7.47493648]
[1693353684294,7.76352935,1730.2,1730.0,8.4128]
[1693353684603,9.33822866,1730.1,1729.8,8.4128]
[1693353684900,9.33822866,1730.1,1729.8,11.0306]
[1693353685093,11.74192866,1730.1,1729.8,11.0306]
[1693353685294,11.93574589,1730.1,1730.0,3.2078]
[1693353686203,13.36932765,1730.1,1730.0,3.2078]
[1693353688799,13.36932765,1730.1,1729.8,8.4128]
[1693353688800,21.77312605,1730.1,1729.8,8.4128]
[1693353689097,6.81402866,1730.0,1729.8,8.4128]
[1693353689302,6.83239899,1729.9,1729.6,3.21647152]
[1693353689503,5.205,1729.7,1729.6,3.21647152]
[1693353689906,6.83239899,1729.7,1729.6,3.21647152]
[1693353690304,6.83239899,1729.7,1729.6,0.00867152]
[1693353690499,13.64642765,1729.7,1729.4,3.2078]
[1693353690699,5.205,1729.5,1729.4,3.2078]
[1693353690899,6.63858176,1729.5,1729.4,3.2078]
[1693353691100,14.58230261,1729.5,1729.4,3.2078]
[1693353691502,14.77611984,1729.5,1729.4,3.2078]
[1693353692707,9.47419899,1729.5,1729.4,3.2078]
[1693353693605,7.94372085,1729.5,1729.4,8.4128]
[1693353693802,2.6418,1729.5,1729.4,8.4128]
[1693353698110,5.30192085,1729.6,1729.4,8.4128]
[1693353698304,2.6064,1729.6,1729.5,5.57133562]
[1693353698510,2.6064,1729.6,1729.5,7.8412721]
[1693353700308,0.47407475,1729.7,1729.5,7.8412721]
[1693353700510,2.4936,1729.8,1729.6,8.4128]
[1693353700717,1.9154,1729.8,1729.7,7.47493648]
[1693353700912,5.30192085,1729.9,1729.7,7.47493648]
[1693353701119,5.30192085,1730.0,1729.8,8.4128]
[1693353701321,5.30192085,1730.0,1729.9,7.47493648]
[1693353702420,5.76519075,1730.0,1729.9,7.47493648]
[1693353703827,7.73992085,1730.1,1729.9,7.47493648]
[1693353704127,7.73992085,1730.1,1730.0,3.2078]
[1693353705622,8.19874879,1730.1,1730.0,3.2078]
[1693353713434,5.30192085,1730.1,1730.0,8.4128]
[1693353718031,0.46390887,1730.3,1730.0,8.4128]
[1693353718239,7.8346,1730.4,1730.2,3.2078]
[1693353718939,7.8346,1730.4,1730.2,5.47773648]
[1693353719238,8.30657284,1730.4,1730.2,5.47773648]
[1693353721835,3.10157284,1730.4,1730.2,5.47773648]
[1693353725337,3.10157284,1730.4,1730.2,10.68273648]
[1693353727446,3.10157284,1730.4,1730.3,5.205]
[1693353727749,3.10157284,1730.4,1730.3,5.6342483]
[1693353737147,0.47197284,1730.4,1730.3,6.7898483]
[1693353737352,2.4227,1730.5,1730.3,6.7898483]
[1693353737554,2.4227,1730.5,1730.4,10.68273648]
[1693353741555,2.3836,1730.5,1730.4,10.68273648]
[1693353745656,2.3559,1730.5,1730.4,10.68273648]
[1693353746759,2.3149,1730.5,1730.4,10.68273648]
[1693353747659,1.8448,1730.5,1730.4,10.68273648]
[1693353750456,3.27838176,1730.5,1730.4,8.4128]
[1693353751150,1.8448,1730.5,1730.4,8.4128]
[1693353755259,3.02287785,1730.6,1730.4,8.4128]
[1693353755460,3.02287785,1730.6,1730.5,7.47493648]
[1693353756960,2.5518,1730.6,1730.5,7.47493648]
[1693353758672,2.5376,1730.8,1730.5,12.67993648]
[1693353758868,5.0049,1730.8,1730.7,8.4128]
[1693353759068,4.427,1730.8,1730.7,10.68273648]
[1693353759569,4.88128958,1730.8,1730.7,10.68273648]
[1693353765075,6.31487134,1730.8,1730.7,8.4128]
[1693353765275,11.59726445,1730.8,1730.7,3.2078]
[1693353769774,6.31487134,1730.8,1730.7,3.2078]
[1693353770971,12.35189204,1730.8,1730.7,3.2078]
[1693353772476,17.55689204,1730.8,1730.7,3.2078]
[1693353774878,11.51987134,1730.8,1730.7,3.2078]
[1693353775775,18.31151963,1730.8,1730.7,3.2078]
[1693353775976,18.31151963,1730.8,1730.4,5.205]
[1693353776177,6.05844155,1730.6,1730.5,3.2078]
[1693353776482,7.49202331,1730.6,1730.5,3.2078]
[1693353776982,0.19381723,1730.5,1730.4,5.205]
[1693353777183,6.25225878,1730.5,1730.4,5.205]
[1693353777484,0.19381723,1730.5,1730.4,5.205]
[1693353777675,6.25225878,1730.5,1730.4,5.205]
[1693353778184,0.19381723,1730.5,1730.4,5.205]
[1693353778481,6.25225878,1730.5,1730.4,5.205]
[1693353778987,6.05844155,1730.5,1730.4,5.205]
[1693353779180,23.27208984,1730.6,1730.3,7.47493648]
[1693353779383,5.30244334,1730.5,1730.3,7.47493648]
[1693353779582,5.30244334,1730.5,1730.3,10.12333648]
[1693353779986,5.30244334,1730.4,1730.3,10.12333648]
[1693353782188,6.7360251,1730.4,1730.3,10.12333648]
[1693353782385,6.7360251,1730.4,1730.3,7.8534]
[1693353782590,6.7360251,1730.4,1730.3,5.205]
[1693353783389,5.30244334,1730.4,1730.3,5.205]
[1693353783591,6.7360251,1730.4,1730.3,5.205]
[1693353784695,7.49202331,1730.4,1730.2,6.3607]
[1693353784989,5.30527006,1730.3,1730.2,6.3607]
[1693353786093,9.45736905,1730.4,1730.2,9.5685]
[1693353786294,5.30527006,1730.3,1730.2,9.5685]
[1693353787092,5.30527006,1730.3,1730.2,6.3607]
[1693353787490,5.30527006,1730.3,1730.2,9.5685]
[1693353788096,9.45736905,1730.4,1730.2,9.5685]
[1693353789891,4.54523994,1730.3,1730.2,9.5685]
[1693353795803,5.9788217,1730.3,1730.2,9.5685]
[1693353796001,5.9788217,1730.3,1730.2,8.4128]
[1693353796201,1.43358176,1730.3,1730.2,8.4128]
[1693353796601,5.97812131,1730.3,1730.2,8.4128]
[1693353798605,8.54502131,1730.3,1730.2,8.4128]
[1693353803810,8.54502131,1730.3,1730.2,3.2078]
[1693353806714,7.11143955,1730.3,1730.2,3.2078]
[1693353808013,8.54502131,1730.3,1730.2,3.2078]
[1693353810210,9.01044944,1730.3,1730.2,3.2078]
[1693353810910,7.57686768,1730.3,1730.2,3.2078]
[1693353811109,9.01044944,1730.3,1730.2,3.2078]
[1693353811506,7.57686768,1730.3,1730.2,8.4128]
[1693353811704,4.54453955,1730.3,1730.2,8.4128]
[1693353819819,5.30527006,1730.4,1730.2,8.4128]
[1693353820020,5.30527006,1730.4,1730.3,5.205]
[1693353820321,6.73885182,1730.4,1730.3,5.61552879]
[1693353820520,9.39295182,1730.4,1730.3,5.61552879]
[1693353820920,4.08768176,1730.4,1730.3,5.61552879]
[1693353821816,10.14612331,1730.4,1730.3,5.61552879]
[1693353822015,10.14612331,1730.4,1730.3,0.41052879]
[1693353823516,18.55892331,1730.4,1730.1,5.205]
[1693353823724,5.30854404,1730.2,1730.1,5.205]
[1693353823920,6.63858176,1730.2,1729.9,6.3609]
[1693353824221,4.55052693,1730.0,1729.9,6.3609]
[1693353824416,5.50276532,1730.1,1729.9,6.3609]
[1693353824721,8.38908467,1730.0,1729.9,6.3609]
[1693353826919,5.98308467,1730.0,1729.9,6.3609]
[1693353829523,5.98106302,1730.0,1729.9,6.3609]
[1693353832625,4.54748126,1730.0,1729.9,6.3609]
[1693353832816,5.98106302,1730.0,1729.9,6.3609]
[1693353833017,4.54748126,1730.0,1729.9,6.3609]
[1693353833219,4.54748126,1730.1,1729.9,6.3609]
[1693353833524,4.54748126,1730.1,1730.0,8.4128]
[1693353833820,4.54748126,1730.1,1730.0,10.68273648]
[1693353834621,4.54748126,1730.2,1730.0,10.68273648]
[1693353834817,4.54748126,1730.3,1730.1,5.205]
[1693353835025,4.54748126,1730.3,1730.2,5.47773648]
[1693353840319,4.54748126,1730.3,1730.2,6.63343648]
[1693353840530,4.54748126,1730.3,1730.2,11.83843648]
[1693353840531,3.96958126,1730.3,1730.2,11.83843648]
[1693353840728,2.5705,1730.4,1730.2,11.83843648]
[1693353840931,1.9926,1730.4,1730.3,5.205]
[1693353841126,1.9926,1730.4,1730.3,6.3607]
[1693353842827,7.83589481,1730.5,1730.3,6.3607]
[1693353843126,7.83589481,1730.5,1730.4,5.47773648]
[1693353847735,9.26947657,1730.5,1730.4,5.47773648]
[1693353855136,7.83589481,1730.5,1730.4,5.47773648]
[1693353857940,5.30539481,1730.5,1730.4,5.47773648]
[1693353858137,5.30539481,1730.5,1730.4,10.68273648]
[1693353858337,4.54227457,1730.5,1730.4,10.68273648]
[1693353858838,9.42197457,1730.6,1730.4,10.68273648]
[1693353859238,4.54227457,1730.5,1730.4,10.68273648]
[1693353859440,9.42197457,1730.6,1730.4,10.68273648]
[1693353862041,9.42197457,1730.6,1730.5,5.205]
[1693353862343,9.42197457,1730.6,1730.5,5.59933563]
[1693353868750,4.54227457,1730.7,1730.5,6.75483563]
[1693353868954,4.54227457,1730.7,1730.6,10.68273648]
[1693353869254,4.54227457,1730.8,1730.6,10.68273648]
[1693353870449,5.97585633,1730.8,1730.6,5.47773648]
[1693353870650,4.54227457,1730.7,1730.6,5.47773648]
[1693353871453,5.97585633,1730.8,1730.6,5.47773648]
[1693353871853,4.54227457,1730.7,1730.6,5.47773648]
[1693353873652,5.97585633,1730.8,1730.6,5.47773648]
[1693353874062,4.54227457,1730.7,1730.6,5.47773648]
[1693353876053,9.9410918,1730.7,1730.6,3.2078]
[1693353876256,5.39881723,1730.7,1730.4,8.87623577]
[1693353876457,5.97379356,1730.6,1730.4,8.87623577]
[1693353879959,9.93902903,1730.5,1730.4,0.46343577]
[1693353880152,9.93902903,1730.5,1730.2,4.83384614]
[1693353880358,11.17879356,1730.4,1730.2,4.3635]
[1693353880558,0.19381723,1730.3,1730.2,4.3635]
[1693353881159,0.19381723,1730.3,1730.2,3.2078]
[1693353882458,4.73402903,1730.3,1730.2,3.2078]
[1693353884768,9.93902903,1730.3,1730.2,3.2078]
[1693353885269,9.93902903,1730.3,1730.1,1.61881481]
[1693353885463,12.40282903,1730.3,1730.1,1.1557]
[1693353885668,1.43358176,1730.2,1730.1,1.1557]
[1693353885966,5.97379356,1730.2,1730.1,1.1557]
[1693353887268,5.97379356,1730.2,1730.1,1.1558]
[1693353890069,11.17879356,1730.2,1730.0,3.2078]
[1693353890371,5.39881723,1730.1,1729.8,4.3638]
[1693353890672,6.63858176,1730.0,1729.8,4.83584623]
[1693353890868,0.19381723,1729.9,1729.8,4.83584623]
[1693353891270,3.97883963,1729.9,1729.8,4.83584623]
[1693353891576,0.19381723,1729.9,1729.8,4.83584623]
[1693353891777,3.97884538,1729.9,1729.8,4.83584623]
[1693353895278,0.19381723,1729.9,1729.8,4.83584623]
[1693353895872,3.97884538,1729.9,1729.8,4.83584623]
[1693353896079,12.90430991,1730.0,1729.8,4.83584623]
[1693353896373,9.11928176,1730.0,1729.8,4.83584623]
[1693353896576,10.42069103,1730.0,1729.8,4.83584623]
[1693353896874,3.78210927,1730.0,1729.9,7.47493648]
[1693353900281,3.43150927,1730.0,1729.9,7.47493648]
[1693353900580,8.2022701,1730.2,1729.9,7.47493648]
[1693353900875,7.9747701,1730.2,1730.1,3.2078]
[1693353901076,7.9747701,1730.2,1730.1,5.47773648]
[1693353901375,9.40835186,1730.2,1730.1,5.47773648]
[1693353901881,4.20335186,1730.2,1730.1,5.47773648]
[1693353902271,9.40835186,1730.2,1730.1,3.2078]
[1693353909987,7.9747701,1730.2,1730.1,3.2078]
[1693353910380,9.40835186,1730.2,1730.1,3.2078]
[1693353915394,5.6785701,1730.2,1730.1,3.2078]
[1693353916186,0.4735701,1730.2,1730.1,8.4128]
[1693353916389,5.65669941,1730.4,1730.1,9.5686]
[1693353916689,5.205,1730.4,1730.3,3.2078]
[1693353917396,7.06153113,1730.6,1730.3,8.4128]
[1693353917586,4.53853113,1730.6,1730.5,3.2078]
[1693353918184,9.16553113,1730.7,1730.5,3.2078]
[1693353918385,4.53796043,1730.7,1730.6,2.26993648]
[1693353918588,9.74296043,1730.7,1730.6,2.26993648]
[1693353919790,11.17654219,1730.7,1730.6,2.26993648]
[1693353920297,6.63858176,1730.7,1730.6,2.26993648]
[1693353920489,11.17724444,1730.7,1730.6,2.26993648]
[1693353920891,6.63858176,1730.7,1730.6,2.26993648]
[1693353921296,11.93353475,1730.7,1730.6,2.26993648]
[1693353923494,10.49995299,1730.7,1730.6,2.26993648]
[1693353924498,11.93353475,1730.7,1730.6,2.26993648]
[1693353924694,11.93353475,1730.7,1730.5,3.2078]
[1693353924896,4.5403616,1730.6,1730.5,3.2078]
[1693353926298,11.17894336,1730.7,1730.5,3.2078]
[1693353931798,0.19381723,1730.6,1730.5,3.2078]
[1693353932801,11.17894336,1730.7,1730.5,3.2078]
[1693353934903,4.73417883,1730.6,1730.5,3.2078]
[1693353939606,4.73081147,1730.6,1730.5,3.2078]
[1693353943202,4.53699424,1730.6,1730.5,3.2078]
[1693353944508,4.99849891,1730.6,1730.5,3.2078]
[1693353950811,4.53699424,1730.6,1730.5,3.2078]
[1693353951610,4.53699424,1730.7,1730.5,9.5683]
[1693353951910,4.53699424,1730.7,1730.6,7.83425729]
[1693353953105,5.00320806,1730.8,1730.6,8.98975729]
[1693353953309,4.53699424,1730.8,1730.7,8.4128]
[1693353959923,4.99057365,1730.9,1730.7,8.4128]
[1693353960113,4.99057365,1730.9,1730.8,5.205]
[1693353960317,10.43475995,1731.0,1730.8,7.47493648]
[1693353960518,5.1416,1731.0,1730.9,3.2078]
[1693353961217,7.04872302,1731.0,1730.9,3.2078]
[1693353961418,11.66446692,1731.0,1730.9,3.2078]
[1693353961922,13.09804868,1731.0,1730.9,3.2078]
[1693353962518,13.09804868,1731.0,1730.8,5.205]
[1693353962708,5.30060933,1730.9,1730.8,5.205]
[1693353963510,5.49442656,1730.9,1730.7,8.4128]
[1693353963711,6.73419109,1730.8,1730.7,8.4128]
[1693353972020,6.73419109,1730.8,1730.7,3.2078]
[1693353973622,5.30060933,1730.8,1730.7,3.2078]
[1693353973827,5.30060933,1730.8,1730.7,8.4128]
[1693353975529,6.73419109,1730.8,1730.7,8.4128]
[1693353975828,5.30060933,1730.8,1730.7,8.4128]
[1693353976417,6.73419109,1730.8,1730.7,8.4128]
[1693353977431,5.30060933,1730.8,1730.7,8.4128]
[1693353979632,4.54161783,1730.8,1730.7,8.4128]
[1693353991634,5.30060933,1730.9,1730.7,8.4128]
[1693353991834,5.30060933,1730.9,1730.8,5.205]
[1693353992025,5.30060933,1730.9,1730.8,7.47493648]
[1693353993336,6.73419109,1730.9,1730.8,7.47493648]
[1693353993533,1.43358176,1730.9,1730.8,7.47493648]
[1693353993835,6.73409745,1730.9,1730.8,7.47493648]
[1693353994337,5.30051569,1730.9,1730.8,7.47493648]
[1693353994536,11.66446692,1731.0,1730.8,7.47493648]
[1693353994734,11.66446692,1731.0,1730.9,3.2078]
[1693353995036,13.10733961,1731.0,1730.9,3.2078]
[1693353995226,11.67375785,1731.0,1730.9,3.2078]
[1693353995432,13.10733961,1731.0,1730.9,3.2078]
[1693353996229,13.10834929,1731.0,1730.9,3.2078]
[1693353996632,7.04872302,1731.0,1730.9,3.2078]
[1693353997731,13.85421439,1731.0,1730.9,3.2078]
[1693353998129,13.85421439,1731.0,1730.8,5.205]
[1693353998329,11.46109491,1730.9,1730.7,3.2078]
[1693353998534,6.73852405,1730.8,1730.7,3.2078]
[1693353998829,1.43358176,1730.8,1730.7,3.2078]
[1693353999031,7.49585944,1730.8,1730.7,3.2078]
[1693353999535,19.50635081,1730.8,1730.4,6.83264293]
[1693353999832,4.54756996,1730.5,1730.4,6.3606]
[1693354000134,5.98115172,1730.5,1730.4,6.3606]
[1693354000334,6.17496895,1730.5,1730.4,6.3606]
[1693354000531,1.62739899,1730.5,1730.4,6.3606]
[1693354000730,6.93289728,1730.5,1730.4,6.3606]
[1693354002044,1.62739899,1730.5,1730.4,6.3606]
[1693354003140,6.17326666,1730.5,1730.4,6.3606]
[1693354004638,5.97944943,1730.5,1730.4,6.3606]
[1693354008842,4.54586767,1730.5,1730.4,6.3606]
[1693354009044,5.97944943,1730.5,1730.4,6.3606]
[1693354011948,11.94408005,1730.5,1730.3,0.47084654]
[1693354012146,4.73750669,1730.4,1730.2,5.205]
[1693354012344,5.97727122,1730.3,1730.2,5.205]
[1693354013946,1.43358176,1730.3,1730.2,5.205]
[1693354017551,5.97727122,1730.3,1730.2,5.205]
[1693354018149,1.43358176,1730.3,1730.2,5.205]
[1693354019347,1.43358176,1730.3,1730.1,8.4128]
[1693354019546,0.19381723,1730.2,1730.1,8.4128]
[1693354020150,0.19381723,1730.2,1730.1,3.2078]
[1693354022049,0.19381723,1730.2,1729.9,2.4527]
[1693354022050,5.39881723,1730.2,1729.9,4.3637]
[1693354022243,3.78209983,1730.0,1729.9,4.3637]
[1693354022450,3.97591706,1730.0,1729.9,4.3637]
[1693354022942,3.97591706,1730.0,1729.9,3.2078]
[1693354024548,9.18091706,1730.0,1729.9,3.2078]
[1693354024745,5.39881723,1730.0,1729.9,3.2078]
[1693354024947,5.39881723,1730.0,1729.6,11.987]
[1693354025254,3.02377733,1729.8,1729.6,11.987]
[1693354025454,1.62739899,1729.7,1729.6,11.987]
[1693354028363,1.43358176,1729.7,1729.6,11.987]
[1693354028555,8.07227733,1729.9,1729.6,11.987]
[1693354028853,1.43358176,1729.8,1729.7,3.2078]
[1693354035854,1.43358176,1729.8,1729.5,5.8696]
[1693354035855,6.63858176,1729.8,1729.5,5.8696]
[1693354036055,5.39881723,1729.7,1729.5,5.8696]
[1693354036262,1.43358176,1729.6,1729.5,5.8696]
[1693354036662,1.43358176,1729.6,1729.5,3.2078]
[1693354038350,1.43358176,1729.6,1729.4,6.2666]
[1693354038554,0.19381723,1729.5,1729.4,6.2666]
[1693354038753,0.19381723,1729.5,1729.3,4.79224933]
[1693354038956,1.43358176,1729.4,1729.3,9.99724933]
[1693354041960,1.43358176,1729.4,1729.3,13.14345802]
[1693354041961,0.5662096,1729.4,1729.3,13.14345802]
[1693354042161,0.5662096,1729.4,1729.3,12.26718581]
[1693354042456,0.5662096,1729.4,1729.3,12.72654538]
[1693354043768,0.5662096,1729.4,1729.3,13.60281759]
[1693354044266,2.74951723,1729.5,1729.3,13.60281759]
[1693354044567,5.205,1729.6,1729.3,13.60281759]
[1693354044867,5.205,1729.6,1729.5,3.2078]
[1693354045569,6.63858176,1729.6,1729.5,3.2078]
[1693354047370,7.09064724,1729.6,1729.5,3.2078]
[1693354054863,7.09064724,1729.6,1729.3,5.93709605]
[1693354055269,7.28446447,1729.6,1729.3,5.93709605]
[1693354056473,7.28446447,1729.6,1729.4,0.87627221]
[1693354056776,7.28446447,1729.6,1729.3,5.93709605]
[1693354061881,5.205,1729.4,1729.3,5.93709605]
[1693354062280,6.63858176,1729.4,1729.3,5.93709605]
[1693354062885,5.205,1729.4,1729.3,6.81336826]
[1693354065093,6.63858176,1729.4,1729.3,6.81336826]
[1693354065590,6.63858176,1729.4,1729.3,8.31334449]
[1693354067792,6.63858176,1729.4,1729.3,7.43707228]
[1693354067994,6.63858176,1729.4,1729.3,5.93709605]
[1693354068291,6.63858176,1729.4,1729.3,6.81336826]
[1693354069895,5.205,1729.4,1729.3,6.81336826]
[1693354070093,7.92654811,1729.5,1729.3,12.01836826]
[1693354070094,3.01674811,1729.5,1729.3,12.01836826]
[1693354070696,4.45032987,1729.5,1729.3,12.01836826]
[1693354071597,9.65532987,1729.5,1729.3,5.93709605]
[1693354071797,14.82362987,1729.5,1729.3,5.93709605]
[1693354072196,3.01674811,1729.4,1729.3,6.81336826]
[1693354075204,3.01674811,1729.4,1729.3,12.01836826]
[1693354076000,3.77093514,1729.5,1729.3,12.01836826]
[1693354076694,3.77093514,1729.4,1729.3,12.01836826]
[1693354079101,10.19086093,1729.6,1729.3,12.01836826]
[1693354079295,10.19086093,1729.6,1729.5,3.2078]
[1693354079502,11.62444269,1729.6,1729.5,3.2078]
[1693354079998,12.37862972,1729.6,1729.5,3.2078]
[1693354080592,12.37862972,1729.6,1729.5,4.08407221]
[1693354080790,12.37862972,1729.6,1729.5,3.2078]
[1693354081299,12.37862972,1729.6,1729.5,4.08407221]
[1693354081699,12.37862972,1729.6,1729.5,3.2078]
[1693354082202,12.40939415,1729.6,1729.5,3.2078]
[1693354084102,12.40939415,1729.6,1729.5,4.08407221]
[1693354084504,12.40939415,1729.6,1729.5,3.2078]
[1693354087103,12.40939415,1729.6,1729.4,10.1751]
[1693354087305,5.50389086,1729.5,1729.4,5.205]
[1693354087502,10.70889086,1729.5,1729.3,3.66715957]
[1693354087704,5.9855957,1729.4,1729.3,3.66715957]
[1693354093014,5.9855957,1729.4,1729.3,3.2078]
[1693354096805,6.63858176,1729.4,1729.1,12.2384]
[1693354097006,4.55143375,1729.2,1729.1,12.2384]
[1693354097209,5.98501551,1729.2,1729.1,12.2384]
[1693354097909,5.98501551,1729.2,1729.1,7.0334]
[1693354098114,5.98501551,1729.2,1729.1,7.04207427]
[1693354098416,1.43358176,1729.2,1729.1,7.04207427]
[1693354098812,1.43358176,1729.2,1729.1,7.50772532]
[1693354099618,1.43358176,1729.2,1729.1,12.71272532]
[1693354100719,1.43358176,1729.2,1729.1,13.58899753]
[1693354100914,4.55143375,1729.3,1729.1,13.58899753]
[1693354101120,4.55143375,1729.3,1729.2,7.47493648]
[1693354101321,5.01384597,1729.4,1729.2,7.86893597]
[1693354101523,5.01384597,1729.4,1729.3,3.2078]
[1693354101524,5.98501551,1729.4,1729.3,3.2078]
[1693354101922,11.19001551,1729.4,1729.1,7.50772532]
[1693354102223,4.74525098,1729.3,1729.1,12.71272532]
[1693354102714,9.79235098,1729.3,1729.1,12.71272532]
[1693354104017,1.43358176,1729.2,1729.1,12.71272532]
[1693354104315,1.43358176,1729.2,1729.1,13.58899753]
[1693354104710,1.43358176,1729.2,1729.1,12.71272532]
[1693354105424,9.79235098,1729.3,1729.1,12.71272532]
[1693354105425,9.78807613,1729.3,1729.1,13.58899753]
[1693354105917,11.22165789,1729.3,1729.1,13.58899753]
[1693354106123,4.5471589,1729.3,1729.2,7.47493648]
[1693354106623,5.98074066,1729.3,1729.2,7.47493648]
[1693354107014,1.43358176,1729.3,1729.2,7.47493648]
[1693354107319,1.43358176,1729.3,1729.2,5.205]
[1693354109020,1.43358176,1729.3,1729.2,6.08127221]
[1693354109821,5.98074066,1729.3,1729.2,6.08127221]
[1693354110019,5.98074066,1729.3,1729.2,5.205]
[1693354110222,5.98074066,1729.3,1729.1,12.71272532]
[1693354110426,10.97804066,1729.3,1729.1,12.71272532]
[1693354110818,10.97804066,1729.3,1729.2,0.87627221]
[1693354111028,10.97804066,1729.3,1729.1,13.12316233]
[1693354113725,10.97804066,1729.3,1729.1,12.71272532]
[1693354114327,6.43088176,1729.3,1729.1,12.71272532]
[1693354115430,6.43088176,1729.3,1729.1,13.58899753]
[1693354120520,6.43088176,1729.3,1729.2,2.26993648]
[1693354121128,10.22302473,1729.4,1729.2,2.26993648]
[1693354121329,10.22302473,1729.4,1729.3,3.2078]
[1693354121529,11.65660649,1729.4,1729.3,3.2078]
[1693354125725,12.4144663,1729.4,1729.3,3.2078]
[1693354128523,12.4144663,1729.4,1729.3,4.08407221]
[1693354130224,12.4144663,1729.4,1729.3,3.2078]
[1693354130732,12.4144663,1729.4,1729.3,4.08407221]
[1693354132225,12.4144663,1729.4,1729.3,3.2078]
[1693354132830,12.4144663,1729.4,1729.3,4.08407221]
[1693354133225,12.4144663,1729.4,1729.3,3.2078]
[1693354139041,12.4144663,1729.4,1729.3,4.08407221]
[1693354139241,12.4144663,1729.4,1729.3,3.2078]
[1693354139440,12.4144663,1729.4,1729.3,4.08407221]
[1693354140449,10.98088454,1729.4,1729.3,4.08407221]
[1693354142244,5.67586583,1729.4,1729.3,4.08407221]
[1693354142844,12.42070547,1729.4,1729.3,4.08407221]
[1693354144148,10.98712371,1729.4,1729.3,4.08407221]
[1693354144348,10.98728861,1729.4,1729.3,4.08407221]
[1693354147647,12.42087037,1729.4,1729.3,4.08407221]
[1693354147848,12.42087037,1729.4,1729.3,3.2078]
[1693354148348,12.42108017,1729.4,1729.3,3.2078]
[1693354148550,7.10944759,1729.4,1729.3,3.2078]
[1693354148749,12.42115372,1729.4,1729.3,3.2078]
[1693354149244,18.48403225,1729.4,1729.3,3.2078]
[1693354149552,13.17232612,1729.4,1729.3,3.2078]
[1693354151543,11.73874436,1729.4,1729.3,4.08407221]
[1693354152350,13.17232612,1729.4,1729.3,4.08407221]
[1693354153148,13.17232612,1729.4,1729.3,3.2078]
[1693354153343,7.10944759,1729.4,1729.3,3.2078]
[1693354153652,13.17987485,1729.4,1729.3,4.08407221]
[1693354154642,11.74629309,1729.4,1729.3,4.08407221]
[1693354155447,5.78217704,1729.4,1729.3,10.44537221]
[1693354155644,4.5522316,1729.4,1729.3,10.44537221]
[1693354155951,4.5522316,1729.5,1729.3,10.44537221]
[1693354156255,3.9740316,1729.5,1729.4,7.47493648]
[1693354156450,3.9740316,1729.5,1729.4,9.00639636]
[1693354157052,3.3958316,1729.5,1729.4,9.00639636]
[1693354157552,5.31998449,1729.6,1729.4,14.21139636]
[1693354157553,0.00867328,1729.6,1729.4,14.21139636]
[1693354157752,0.00867328,1729.6,1729.5,10.44517221]
[1693354158051,4.74178449,1729.8,1729.6,2.26993648]